[Event "November 21 Early 2023"]
[Site "https://www.chess.com"]
[Date "2023.11.21"]
[Round "6"]
[White "Fiedorek, Michal"]
[Black "Bobomurodova, Maftuna"]
[Result "0-1"]
[Board "115"]
[TimeControl "180+1"]
[WhiteFideId "1199528"]
[BlackFideId "14207400"]
[WhiteElo "2135"]
[BlackElo "1814"]
[WhiteTeam "POL"]
[BlackTeam "UZB"]
[WhiteClock "0:00:20"]
[BlackClock "0:00:07"]

1. e4 {[%clk 0:02:56]}  e5 {[%clk 0:02:59]} 2. Nf3 {[%clk 0:02:56]}  Nc6 {[%clk 0:02:59]} 3. Bc4 {[%clk 0:02:56]}  Bc5 {[%clk 0:02:59]} 4. c3 {[%clk 0:02:55]}  Nf6 {[%clk 0:02:59]} 5. d3 {[%clk 0:02:56]}  a6 {[%clk 0:02:52]} 6. a4 {[%clk 0:02:55]}  d6 {[%clk 0:02:52]} 7. O-O {[%clk 0:02:55]}  O-O {[%clk 0:02:50]} 8. h3 {[%clk 0:02:56]}  h6 {[%clk 0:02:50]} 9. Re1 {[%clk 0:02:57]}  Ba7 {[%clk 0:02:49]} 10. Nbd2 {[%clk 0:02:57]}  Ne7 {[%clk 0:02:49]} 11. d4 {[%clk 0:02:56]}  Ng6 {[%clk 0:02:49]} 12. Nf1 {[%clk 0:02:56]}  Re8 {[%clk 0:02:33]} 13. Ng3 {[%clk 0:02:54]}  c6 {[%clk 0:02:29]} 14. Bb3 {[%clk 0:02:51]}  Qc7 {[%clk 0:02:25]} 15. Qc2 {[%clk 0:02:38]}  Be6 {[%clk 0:02:16]} 16. d5 {[%clk 0:02:27]}  cxd5 {[%clk 0:02:11]} 17. exd5 {[%clk 0:02:27]}  Bxd5 {[%clk 0:02:06]} 18. Bxd5 {[%clk 0:02:21]}  Nxd5 {[%clk 0:02:06]} 19. Nf5 {[%clk 0:02:21]}  Qd7 {[%clk 0:01:51]} 20. Bd2 {[%clk 0:02:09]}  Nde7 {[%clk 0:01:49]} 21. Ng3 {[%clk 0:02:03]}  Rad8 {[%clk 0:01:34]} 22. Rad1 {[%clk 0:02:02]}  Qc6 {[%clk 0:01:31]} 23. Nh5 {[%clk 0:01:55]}  Nd5 {[%clk 0:01:13]} 24. Qc1 {[%clk 0:01:51]}  Kh7 {[%clk 0:01:05]} 25. c4 {[%clk 0:01:25]}  Ndf4 {[%clk 0:00:58]} 26. Nxf4 {[%clk 0:01:24]}  exf4 {[%clk 0:00:58]} 27. Bxf4 {[%clk 0:01:21]}  Rxe1+ {[%clk 0:00:56]} 28. Rxe1 {[%clk 0:01:20]}  Qxa4 {[%clk 0:00:55]} 29. Bg3 {[%clk 0:01:11]}  Qc6 {[%clk 0:00:54]} 30. Qc2 {[%clk 0:01:04]}  b5 {[%clk 0:00:48]} 31. b3 {[%clk 0:01:04]}  bxc4 {[%clk 0:00:48]} 32. bxc4 {[%clk 0:01:04]}  Rc8 {[%clk 0:00:45]} 33. Rc1 {[%clk 0:01:04]}  a5 {[%clk 0:00:43]} 34. Qf5 {[%clk 0:01:03]}  Qc7 {[%clk 0:00:40]} 35. h4 {[%clk 0:00:57]}  Kg8 {[%clk 0:00:36]} 36. Bxd6 {[%clk 0:00:55]}  Qb7 {[%clk 0:00:31]} 37. c5 {[%clk 0:00:50]}  a4 {[%clk 0:00:27]} 38. h5 {[%clk 0:00:50]}  Nf8 {[%clk 0:00:27]} 39. Ne5 {[%clk 0:00:49]}  Ne6 {[%clk 0:00:24]} 40. Rb1 {[%clk 0:00:39]}  Qd5 {[%clk 0:00:09]} 41. Qxf7+ {[%clk 0:00:36]}  Kh7 {[%clk 0:00:10]} 42. Qf5+ {[%clk 0:00:32]}  Kg8 {[%clk 0:00:09]} 43. Qf7+ {[%clk 0:00:23]}  Kh7 {[%clk 0:00:09]} 44. Rb7 {[%clk 0:00:23]}  Bxc5 {[%clk 0:00:08]} 45. Qxg7+ {[%clk 0:00:20]}  Nxg7 {[%clk 0:00:07]} 0-1

[Event "November 21 Early 2023"]
[Site "https://www.chess.com"]
[Date "2023.11.21"]
[Round "6"]
[White "LeoLV10"]
[Black "SeLaPegoACualquiera"]
[Result "1-0"]
[Board "117"]
[TimeControl "180+1"]
[WhiteElo "2520"]
[BlackElo "2179"]
[WhiteClock "0:00:59"]
[BlackClock "0:00:34"]

1. e4 {[%clk 0:02:58]}  Nf6 {[%clk 0:02:59]} 2. e5 {[%clk 0:02:58]}  Nd5 {[%clk 0:03:00]} 3. c4 {[%clk 0:02:59]}  Nb6 {[%clk 0:03:00]} 4. d4 {[%clk 0:03:00]}  d6 {[%clk 0:03:01]} 5. exd6 {[%clk 0:03:01]}  cxd6 {[%clk 0:03:01]} 6. Nc3 {[%clk 0:02:58]}  g6 {[%clk 0:03:01]} 7. Be3 {[%clk 0:02:58]}  Nc6 {[%clk 0:03:01]} 8. Rc1 {[%clk 0:02:58]}  Bg7 {[%clk 0:03:01]} 9. Nf3 {[%clk 0:02:58]}  O-O {[%clk 0:03:00]} 10. Be2 {[%clk 0:02:58]}  e5 {[%clk 0:03:00]} 11. d5 {[%clk 0:02:58]}  Ne7 {[%clk 0:03:00]} 12. b4 {[%clk 0:02:54]}  h6 {[%clk 0:03:00]} 13. O-O {[%clk 0:02:44]}  f5 {[%clk 0:02:59]} 14. Qb3 {[%clk 0:02:30]}  f4 {[%clk 0:02:56]} 15. Bd2 {[%clk 0:02:23]}  a5 {[%clk 0:02:51]} 16. a3 {[%clk 0:02:20]}  a4 {[%clk 0:02:47]} 17. Qa2 {[%clk 0:02:19]}  Kh7 {[%clk 0:02:36]} 18. Ne4 {[%clk 0:02:05]}  Bf5 {[%clk 0:02:33]} 19. Bd3 {[%clk 0:02:05]}  Bxe4 {[%clk 0:02:31]} 20. Bxe4 {[%clk 0:02:05]}  Nf5 {[%clk 0:02:29]} 21. Rfd1 {[%clk 0:02:02]}  g5 {[%clk 0:02:17]} 22. c5 {[%clk 0:01:57]}  dxc5 {[%clk 0:02:13]} 23. bxc5 {[%clk 0:01:57]}  Nc8 {[%clk 0:02:06]} 24. Bc3 {[%clk 0:01:47]}  Qe7 {[%clk 0:01:38]} 25. d6 {[%clk 0:01:46]}  Qf7 {[%clk 0:01:28]} 26. Qxf7 {[%clk 0:01:45]}  Rxf7 {[%clk 0:01:27]} 27. Nxe5 {[%clk 0:01:45]}  Rf8 {[%clk 0:01:25]} 28. Nd7 {[%clk 0:01:44]}  Rf7 {[%clk 0:01:22]} 29. Ne5 {[%clk 0:01:29]}  Bxe5 {[%clk 0:01:13]} 30. Bxe5 {[%clk 0:01:29]}  Na7 {[%clk 0:01:10]} 31. d7 {[%clk 0:01:04]}  Rd8 {[%clk 0:01:02]} 32. Bc7 {[%clk 0:01:01]}  Nc6 {[%clk 0:00:58]} 33. Bxc6 {[%clk 0:00:59]}  bxc6 {[%clk 0:00:34]} 34. Bxd8 {[%clk 0:00:59]} 1-0

[Event "November 21 Early 2023"]
[Site "https://www.chess.com"]
[Date "2023.11.21"]
[Round "6"]
[White "Bashirli, Saadat"]
[Black "Vasquez Schroeder, Rodrigo"]
[Result "0-1"]
[Board "118"]
[TimeControl "180+1"]
[WhiteFideId "13429990"]
[BlackFideId "3400042"]
[WhiteElo "1537"]
[BlackElo "2582"]
[WhiteTeam "AZE"]
[BlackTeam "CHI"]
[WhiteClock "0:00:45"]
[BlackClock "0:01:53"]

1. d4 {[%clk 0:03:00]}  Nf6 {[%clk 0:02:48]} 2. e3 {[%clk 0:03:00]}  g6 {[%clk 0:02:48]} 3. Bd3 {[%clk 0:02:59]}  Bg7 {[%clk 0:02:48]} 4. f4 {[%clk 0:03:00]}  d5 {[%clk 0:02:48]} 5. Nf3 {[%clk 0:02:58]}  O-O {[%clk 0:02:48]} 6. O-O {[%clk 0:02:57]}  c5 {[%clk 0:02:49]} 7. c3 {[%clk 0:02:56]}  Bf5 {[%clk 0:02:49]} 8. Qc2 {[%clk 0:02:50]}  Bxd3 {[%clk 0:02:42]} 9. Qxd3 {[%clk 0:02:50]}  Qc7 {[%clk 0:02:42]} 10. Nbd2 {[%clk 0:02:49]}  Nbd7 {[%clk 0:02:41]} 11. Ne5 {[%clk 0:02:41]}  e6 {[%clk 0:02:41]} 12. e4 {[%clk 0:02:36]}  cxd4 {[%clk 0:02:39]} 13. cxd4 {[%clk 0:02:31]}  dxe4 {[%clk 0:02:39]} 14. Nxe4 {[%clk 0:02:32]}  Nxe4 {[%clk 0:02:39]} 15. Qxe4 {[%clk 0:02:30]}  Nf6 {[%clk 0:02:40]} 16. Qe2 {[%clk 0:02:25]}  Rac8 {[%clk 0:02:39]} 17. Be3 {[%clk 0:02:20]}  Nd5 {[%clk 0:02:39]} 18. Rac1 {[%clk 0:02:14]}  Qa5 {[%clk 0:02:38]} 19. a3 {[%clk 0:02:11]}  Qa4 {[%clk 0:02:33]} 20. Qd2 {[%clk 0:01:57]}  Rfd8 {[%clk 0:02:28]} 21. Rxc8 {[%clk 0:01:46]}  Rxc8 {[%clk 0:02:28]} 22. Rc1 {[%clk 0:01:46]}  Qe8 {[%clk 0:02:21]} 23. Kf2 {[%clk 0:01:41]}  h5 {[%clk 0:02:19]} 24. Rxc8 {[%clk 0:01:37]}  Qxc8 {[%clk 0:02:18]} 25. Qc1 {[%clk 0:01:37]}  Qd8 {[%clk 0:02:16]} 26. Qc4 {[%clk 0:01:34]}  Qh4+ {[%clk 0:02:13]} 27. Kf3 {[%clk 0:01:27]}  Bxe5 {[%clk 0:02:06]} 28. dxe5 {[%clk 0:01:20]}  Qg4+ {[%clk 0:02:04]} 29. Kf2 {[%clk 0:01:15]}  Qxg2+ {[%clk 0:02:04]} 30. Ke1 {[%clk 0:01:05]}  Nxe3 {[%clk 0:02:01]} 31. Qc8+ {[%clk 0:01:06]}  Kg7 {[%clk 0:02:00]} 32. Qd8 {[%clk 0:01:05]}  Nd5 {[%clk 0:01:59]} 33. b4 {[%clk 0:01:03]}  Qh1+ {[%clk 0:01:57]} 34. Kd2 {[%clk 0:01:02]}  Qxh2+ {[%clk 0:01:58]} 35. Kd3 {[%clk 0:01:02]}  Qxf4 {[%clk 0:01:59]} 36. b5 {[%clk 0:01:01]}  h4 {[%clk 0:01:57]} 37. a4 {[%clk 0:00:55]}  Qxa4 {[%clk 0:01:54]} 38. Qd6 {[%clk 0:00:53]}  Qxb5+ {[%clk 0:01:54]} 39. Kd4 {[%clk 0:00:52]}  Qb4+ {[%clk 0:01:54]} 40. Kd3 {[%clk 0:00:50]}  Qxd6 {[%clk 0:01:53]} 41. exd6 {[%clk 0:00:51]}  Kf8 {[%clk 0:01:53]} 42. Kd4 {[%clk 0:00:49]}  Ke8 {[%clk 0:01:52]} 43. Ke5 {[%clk 0:00:45]}  Kd7 {[%clk 0:01:53]} 0-1

[Event "November 21 Early 2023"]
[Site "https://www.chess.com"]
[Date "2023.11.21"]
[Round "6"]
[White "Rios Escobar, Adan"]
[Black "Sattarov, Bobir"]
[Result "0-1"]
[Board "121"]
[TimeControl "180+1"]
[WhiteFideId "3403645"]
[BlackFideId "14203081"]
[WhiteElo "2425"]
[BlackElo "2351"]
[WhiteTeam "CHI"]
[BlackTeam "UZB"]
[WhiteClock "0:00:00"]
[BlackClock "0:00:51"]

1. d4 {[%clk 0:02:51]}  Nf6 {[%clk 0:02:59]} 2. g3 {[%clk 0:02:49]}  c5 {[%clk 0:03:00]} 3. d5 {[%clk 0:02:44]}  g6 {[%clk 0:03:00]} 4. c4 {[%clk 0:02:43]}  d6 {[%clk 0:03:00]} 5. Nc3 {[%clk 0:02:43]}  Bg7 {[%clk 0:03:00]} 6. Nf3 {[%clk 0:02:44]}  O-O {[%clk 0:03:01]} 7. Bg2 {[%clk 0:02:44]}  e6 {[%clk 0:03:01]} 8. O-O {[%clk 0:02:44]}  exd5 {[%clk 0:03:01]} 9. cxd5 {[%clk 0:02:45]}  Na6 {[%clk 0:02:55]} 10. Re1 {[%clk 0:02:35]}  Re8 {[%clk 0:02:53]} 11. Nd2 {[%clk 0:02:33]}  Rb8 {[%clk 0:02:42]} 12. a4 {[%clk 0:02:25]}  Nb4 {[%clk 0:02:40]} 13. Nc4 {[%clk 0:02:24]}  Ng4 {[%clk 0:02:24]} 14. Bf4 {[%clk 0:01:57]}  Ne5 {[%clk 0:02:18]} 15. Nxe5 {[%clk 0:01:53]}  Bxe5 {[%clk 0:02:19]} 16. Bxe5 {[%clk 0:01:49]}  Rxe5 {[%clk 0:02:19]} 17. e4 {[%clk 0:01:46]}  a6 {[%clk 0:02:05]} 18. f4 {[%clk 0:01:45]}  Re8 {[%clk 0:02:04]} 19. e5 {[%clk 0:01:45]}  Bf5 {[%clk 0:02:03]} 20. Ne4 {[%clk 0:01:12]}  dxe5 {[%clk 0:01:52]} 21. fxe5 {[%clk 0:00:57]}  Rxe5 {[%clk 0:01:51]} 22. d6 {[%clk 0:00:41]}  Bxe4 {[%clk 0:01:44]} 23. Rxe4 {[%clk 0:00:38]}  Qf6 {[%clk 0:01:43]} 24. d7 {[%clk 0:00:28]}  Rd8 {[%clk 0:01:40]} 25. Rxe5 {[%clk 0:00:23]}  Qxe5 {[%clk 0:01:41]} 26. Bxb7 {[%clk 0:00:23]}  c4 {[%clk 0:01:37]} 27. Bc8 {[%clk 0:00:21]}  Nd3 {[%clk 0:01:35]} 28. Qd2 {[%clk 0:00:13]}  Rxd7 {[%clk 0:01:26]} 29. Bxd7 {[%clk 0:00:13]}  Qd4+ {[%clk 0:01:27]} 30. Kg2 {[%clk 0:00:13]}  Qd5+ {[%clk 0:01:27]} 31. Kg1 {[%clk 0:00:12]}  Qd4+ {[%clk 0:01:27]} 32. Kg2 {[%clk 0:00:12]}  Qxd7 {[%clk 0:01:28]} 33. Rd1 {[%clk 0:00:12]}  Qd5+ {[%clk 0:01:28]} 34. Kg1 {[%clk 0:00:11]}  Qc5+ {[%clk 0:01:29]} 35. Kg2 {[%clk 0:00:11]}  Qc6+ {[%clk 0:01:29]} 36. Kg1 {[%clk 0:00:11]}  Qxa4 {[%clk 0:01:29]} 37. Kg2 {[%clk 0:00:08]}  Qc6+ {[%clk 0:01:29]} 38. Kg1 {[%clk 0:00:09]}  Qb6+ {[%clk 0:01:30]} 39. Kg2 {[%clk 0:00:09]}  h5 {[%clk 0:01:24]} 40. h3 {[%clk 0:00:08]}  Qd4 {[%clk 0:01:19]} 41. Kh2 {[%clk 0:00:08]}  h4 {[%clk 0:01:18]} 42. gxh4 {[%clk 0:00:07]}  Qxh4 {[%clk 0:01:19]} 43. Qe3 {[%clk 0:00:06]}  Qf6 {[%clk 0:01:17]} 44. Rd2 {[%clk 0:00:06]}  Ne5 {[%clk 0:01:16]} 45. Rd8+ {[%clk 0:00:06]}  Kg7 {[%clk 0:01:16]} 46. Rd5 {[%clk 0:00:05]}  Nc6 {[%clk 0:01:08]} 47. Qd2 {[%clk 0:00:03]}  Qe6 {[%clk 0:01:04]} 48. Kg2 {[%clk 0:00:03]}  Ne5 {[%clk 0:01:02]} 49. Qd4 {[%clk 0:00:03]}  f6 {[%clk 0:01:02]} 50. Rd8 {[%clk 0:00:02]}  Qc6+ {[%clk 0:01:00]} 51. Qd5 {[%clk 0:00:02]}  Qb6 {[%clk 0:01:01]} 52. Qd4 {[%clk 0:00:02]}  Qb7+ {[%clk 0:01:00]} 53. Qd5 {[%clk 0:00:03]}  Qxb2+ {[%clk 0:01:00]} 54. Kg3 {[%clk 0:00:03]}  Qb3+ {[%clk 0:01:00]} 55. Kg2 {[%clk 0:00:04]}  Qc2+ {[%clk 0:01:00]} 56. Kg3 {[%clk 0:00:04]}  Qc3+ {[%clk 0:01:00]} 57. Kg2 {[%clk 0:00:05]}  Qe3 {[%clk 0:01:00]} 58. Rg8+ {[%clk 0:00:02]}  Kh6 {[%clk 0:01:00]} 59. Rh8+ {[%clk 0:00:02]}  Kg5 {[%clk 0:01:01]} 60. h4+ {[%clk 0:00:01]}  Kg4 {[%clk 0:01:00]} 61. Qd1+ {[%clk 0:00:01]}  Nf3 {[%clk 0:00:57]} 62. Qd7+ {[%clk 0:00:02]}  f5 {[%clk 0:00:57]} 63. Qd1 {[%clk 0:00:02]}  c3 {[%clk 0:00:56]} 64. Rg8 {[%clk 0:00:01]}  Kf4 {[%clk 0:00:51]} 65. Rxg6 {[%clk 0:00:00]}  Nxh4+ {[%clk 0:00:51]} 0-1

[Event "November 21 Early 2023"]
[Site "https://www.chess.com"]
[Date "2023.11.21"]
[Round "6"]
[White "Darmanin, Jake"]
[Black "Skliarov, Viktor"]
[Result "1-0"]
[Board "123"]
[TimeControl "180+1"]
[WhiteFideId "5601061"]
[BlackFideId "14106736"]
[WhiteElo "2119"]
[BlackElo "2304"]
[WhiteTeam "MLT"]
[BlackTeam "UKR"]
[WhiteClock "0:00:44"]
[BlackClock "0:00:03"]

1. e4 {[%clk 0:03:00]}  c5 {[%clk 0:03:00]} 2. Nf3 {[%clk 0:03:01]}  Nc6 {[%clk 0:03:00]} 3. c3 {[%clk 0:03:01]}  Nf6 {[%clk 0:03:00]} 4. e5 {[%clk 0:03:01]}  Nd5 {[%clk 0:03:01]} 5. Bc4 {[%clk 0:03:01]}  Nb6 {[%clk 0:03:01]} 6. Bb3 {[%clk 0:03:02]}  c4 {[%clk 0:03:01]} 7. Bc2 {[%clk 0:03:02]}  Qc7 {[%clk 0:03:02]} 8. Qe2 {[%clk 0:03:00]}  g5 {[%clk 0:03:02]} 9. h3 {[%clk 0:02:56]}  Bg7 {[%clk 0:03:02]} 10. b3 {[%clk 0:02:48]}  Nxe5 {[%clk 0:02:57]} 11. Nxg5 {[%clk 0:02:45]}  Nd3+ {[%clk 0:02:50]} 12. Bxd3 {[%clk 0:02:40]}  cxd3 {[%clk 0:02:51]} 13. Qxd3 {[%clk 0:02:40]}  Qe5+ {[%clk 0:02:51]} 14. Qe3 {[%clk 0:02:39]}  Qxe3+ {[%clk 0:02:27]} 15. fxe3 {[%clk 0:02:38]}  h6 {[%clk 0:02:25]} 16. Nf3 {[%clk 0:02:36]}  d5 {[%clk 0:02:22]} 17. Na3 {[%clk 0:02:36]}  Bf5 {[%clk 0:02:18]} 18. Nb5 {[%clk 0:02:34]}  Kd7 {[%clk 0:02:12]} 19. Nbd4 {[%clk 0:02:28]}  Bd3 {[%clk 0:02:11]} 20. Ne2 {[%clk 0:02:22]}  e5 {[%clk 0:02:09]} 21. Bb2 {[%clk 0:02:15]}  a5 {[%clk 0:02:03]} 22. Nc1 {[%clk 0:02:15]}  Ba6 {[%clk 0:02:00]} 23. d4 {[%clk 0:02:03]}  e4 {[%clk 0:01:57]} 24. Ne5+ {[%clk 0:01:55]}  Bxe5 {[%clk 0:01:55]} 25. dxe5 {[%clk 0:01:55]}  Ke6 {[%clk 0:01:54]} 26. Ne2 {[%clk 0:01:54]}  Bxe2 {[%clk 0:01:53]} 27. Kxe2 {[%clk 0:01:53]}  a4 {[%clk 0:01:44]} 28. Rhf1 {[%clk 0:01:37]}  Nd7 {[%clk 0:01:42]} 29. c4 {[%clk 0:01:33]}  dxc4 {[%clk 0:01:36]} 30. bxc4 {[%clk 0:01:32]}  a3 {[%clk 0:01:37]} 31. Bd4 {[%clk 0:01:32]}  Ra4 {[%clk 0:01:27]} 32. Rac1 {[%clk 0:01:31]}  Rc8 {[%clk 0:00:33]} 33. c5 {[%clk 0:01:22]}  Ra5 {[%clk 0:00:32]} 34. Rf4 {[%clk 0:01:19]}  Nxe5 {[%clk 0:00:16]} 35. Rxe4 {[%clk 0:01:17]}  f6 {[%clk 0:00:17]} 36. Rh4 {[%clk 0:01:04]}  b6 {[%clk 0:00:14]} 37. Rxh6 {[%clk 0:00:57]}  bxc5 {[%clk 0:00:13]} 38. Bc3 {[%clk 0:00:57]}  Rb5 {[%clk 0:00:11]} 39. Rf1 {[%clk 0:00:57]}  Rf8 {[%clk 0:00:11]} 40. g4 {[%clk 0:00:55]}  Nd7 {[%clk 0:00:08]} 41. g5 {[%clk 0:00:54]}  Rb6 {[%clk 0:00:08]} 42. Bxf6 {[%clk 0:00:46]}  Kd5 {[%clk 0:00:05]} 43. Rd1+ {[%clk 0:00:44]}  Kc6 {[%clk 0:00:03]} 44. Be7+ {[%clk 0:00:44]} 1-0

[Event "November 21 Early 2023"]
[Site "https://www.chess.com"]
[Date "2023.11.21"]
[Round "6"]
[White "Gubajdullin, Alexei"]
[Black "Haitin, Ilja"]
[Result "1-0"]
[Board "125"]
[TimeControl "180+1"]
[WhiteFideId "4141202"]
[BlackFideId "4501764"]
[WhiteElo "2280"]
[BlackElo "2221"]
[WhiteTeam "RUS"]
[BlackTeam "EST"]
[WhiteClock "0:01:02"]
[BlackClock "0:00:00"]

1. d4 {[%clk 0:03:00]}  d5 {[%clk 0:02:58]} 2. Nf3 {[%clk 0:03:00]}  Nf6 {[%clk 0:02:58]} 3. Bf4 {[%clk 0:03:01]}  c5 {[%clk 0:02:57]} 4. e3 {[%clk 0:03:01]}  Nc6 {[%clk 0:02:57]} 5. Nbd2 {[%clk 0:03:01]}  e6 {[%clk 0:02:57]} 6. c3 {[%clk 0:03:01]}  Bd6 {[%clk 0:02:57]} 7. Bg3 {[%clk 0:03:01]}  O-O {[%clk 0:02:37]} 8. Bd3 {[%clk 0:03:00]}  b6 {[%clk 0:02:28]} 9. Ne5 {[%clk 0:02:58]}  Bb7 {[%clk 0:02:09]} 10. f4 {[%clk 0:02:58]}  Ne7 {[%clk 0:02:05]} 11. Qf3 {[%clk 0:02:57]}  Nf5 {[%clk 0:01:58]} 12. Bf2 {[%clk 0:02:55]}  Be7 {[%clk 0:01:55]} 13. Qh3 {[%clk 0:02:54]}  Nd6 {[%clk 0:01:38]} 14. g4 {[%clk 0:02:54]}  Nfe4 {[%clk 0:01:36]} 15. g5 {[%clk 0:02:54]}  Nf5 {[%clk 0:01:27]} 16. Rg1 {[%clk 0:02:53]}  a5 {[%clk 0:01:17]} 17. Rg4 {[%clk 0:02:51]}  a4 {[%clk 0:01:11]} 18. a3 {[%clk 0:02:51]}  b5 {[%clk 0:01:06]} 19. Nxe4 {[%clk 0:02:42]}  dxe4 {[%clk 0:01:06]} 20. Bxb5 {[%clk 0:02:42]}  cxd4 {[%clk 0:01:05]} 21. exd4 {[%clk 0:02:42]}  Qb6 {[%clk 0:00:58]} 22. c4 {[%clk 0:02:41]}  Ba6 {[%clk 0:00:50]} 23. Nd7 {[%clk 0:02:40]}  Qa5+ {[%clk 0:00:49]} 24. Qc3 {[%clk 0:02:40]}  Bxb5 {[%clk 0:00:43]} 25. Qxa5 {[%clk 0:02:39]}  Rxa5 {[%clk 0:00:44]} 26. Nxf8 {[%clk 0:02:38]}  Be8 {[%clk 0:00:36]} 27. Rd1 {[%clk 0:02:05]}  Kxf8 {[%clk 0:00:35]} 28. d5 {[%clk 0:02:05]}  exd5 {[%clk 0:00:34]} 29. Rxd5 {[%clk 0:02:05]}  Rxd5 {[%clk 0:00:33]} 30. cxd5 {[%clk 0:02:05]}  e3 {[%clk 0:00:30]} 31. Bg1 {[%clk 0:02:03]}  Bb5 {[%clk 0:00:26]} 32. Rg2 {[%clk 0:02:01]}  Bc4 {[%clk 0:00:26]} 33. Rc2 {[%clk 0:02:01]}  Nd6 {[%clk 0:00:16]} 34. Bxe3 {[%clk 0:01:56]}  Bxd5 {[%clk 0:00:16]} 35. Bc5 {[%clk 0:01:56]}  Be6 {[%clk 0:00:12]} 36. Rf2 {[%clk 0:01:49]}  g6 {[%clk 0:00:11]} 37. Bd4 {[%clk 0:01:47]}  Nf5 {[%clk 0:00:09]} 38. Be5 {[%clk 0:01:47]}  Bb3 {[%clk 0:00:08]} 39. Rd2 {[%clk 0:01:44]}  Bc5 {[%clk 0:00:06]} 40. Rd8+ {[%clk 0:01:41]}  Ke7 {[%clk 0:00:06]} 41. Bf6+ {[%clk 0:01:39]}  Ke6 {[%clk 0:00:05]} 42. Rc8 {[%clk 0:01:39]}  Bd6 {[%clk 0:00:05]} 43. Ra8 {[%clk 0:01:35]}  Bxf4 {[%clk 0:00:05]} 44. Ra6+ {[%clk 0:01:34]}  Kd5 {[%clk 0:00:05]} 45. Ra7 {[%clk 0:01:34]}  Ke4 {[%clk 0:00:04]} 46. Ra8 {[%clk 0:01:31]}  Kf3 {[%clk 0:00:04]} 47. Rh8 {[%clk 0:01:30]}  Kg4 {[%clk 0:00:04]} 48. Rxh7 {[%clk 0:01:27]}  Bxg5 {[%clk 0:00:04]} 49. Bxg5 {[%clk 0:01:26]}  Kxg5 {[%clk 0:00:05]} 50. Rh8 {[%clk 0:01:26]}  Kf4 {[%clk 0:00:05]} 51. Kf2 {[%clk 0:01:26]}  f6 {[%clk 0:00:05]} 52. Rf8 {[%clk 0:01:26]}  Kg5 {[%clk 0:00:04]} 53. Rh8 {[%clk 0:01:22]}  Nd6 {[%clk 0:00:04]} 54. Ke3 {[%clk 0:01:21]}  Nc4+ {[%clk 0:00:04]} 55. Ke4 {[%clk 0:01:19]}  Nxb2 {[%clk 0:00:05]} 56. h4+ {[%clk 0:01:18]}  Kg4 {[%clk 0:00:05]} 57. Rh6 {[%clk 0:01:18]}  f5+ {[%clk 0:00:04]} 58. Ke3 {[%clk 0:01:17]}  Nc4+ {[%clk 0:00:04]} 59. Kd4 {[%clk 0:01:17]}  Nxa3 {[%clk 0:00:04]} 60. Rxg6+ {[%clk 0:01:17]}  Kxh4 {[%clk 0:00:04]} 61. Ke3 {[%clk 0:01:15]}  Nc4+ {[%clk 0:00:03]} 62. Kf4 {[%clk 0:01:16]}  Kh5 {[%clk 0:00:03]} 63. Rg5+ {[%clk 0:01:15]}  Kh6 {[%clk 0:00:03]} 64. Rxf5 {[%clk 0:01:15]}  a3 {[%clk 0:00:03]} 65. Rf8 {[%clk 0:01:12]}  a2 {[%clk 0:00:03]} 66. Ra8 {[%clk 0:01:11]}  Kg6 {[%clk 0:00:02]} 67. Ke4 {[%clk 0:01:09]}  Nb6 {[%clk 0:00:01]} 68. Ra6 {[%clk 0:01:08]}  Kf7 {[%clk 0:00:02]} 69. Ra3 {[%clk 0:01:05]}  Nc4 {[%clk 0:00:02]} 70. Ra7+ {[%clk 0:01:04]}  Ke6 {[%clk 0:00:02]} 71. Kd4 {[%clk 0:01:05]}  Nd6 {[%clk 0:00:02]} 72. Ra6 {[%clk 0:01:03]}  Kd7 {[%clk 0:00:00]} 73. Kc3 {[%clk 0:01:02]} 1-0

[Event "November 21 Early 2023"]
[Site "https://www.chess.com"]
[Date "2023.11.21"]
[Round "6"]
[White "Spichkin, Alexander"]
[Black "Streltsov, Alexey"]
[Result "1-0"]
[Board "127"]
[TimeControl "180+1"]
[WhiteFideId "4144074"]
[BlackFideId "24104434"]
[WhiteElo "1968"]
[BlackElo "2311"]
[WhiteTeam "RUS"]
[BlackTeam "ISR"]
[WhiteClock "0:01:25"]
[BlackClock "0:00:58"]

1. f4 {[%clk 0:02:59]}  d5 {[%clk 0:02:56]} 2. Nf3 {[%clk 0:02:59]}  g6 {[%clk 0:02:56]} 3. e3 {[%clk 0:02:59]}  Bg7 {[%clk 0:02:57]} 4. Be2 {[%clk 0:03:00]}  c5 {[%clk 0:02:57]} 5. O-O {[%clk 0:03:01]}  Nc6 {[%clk 0:02:57]} 6. d3 {[%clk 0:03:01]}  Nf6 {[%clk 0:02:58]} 7. Kh1 {[%clk 0:03:02]}  O-O {[%clk 0:02:58]} 8. a4 {[%clk 0:03:02]}  Re8 {[%clk 0:02:58]} 9. Ne5 {[%clk 0:03:02]}  Qc7 {[%clk 0:02:53]} 10. Nxc6 {[%clk 0:03:01]}  Qxc6 {[%clk 0:02:52]} 11. Nc3 {[%clk 0:03:02]}  e5 {[%clk 0:02:49]} 12. e4 {[%clk 0:02:59]}  dxe4 {[%clk 0:02:43]} 13. dxe4 {[%clk 0:02:59]}  exf4 {[%clk 0:02:33]} 14. Bb5 {[%clk 0:02:51]}  Qe6 {[%clk 0:02:26]} 15. Bxe8 {[%clk 0:02:51]}  Qxe8 {[%clk 0:02:27]} 16. Bxf4 {[%clk 0:02:50]}  Nxe4 {[%clk 0:02:27]} 17. Nxe4 {[%clk 0:02:49]}  Qxe4 {[%clk 0:02:21]} 18. Re1 {[%clk 0:02:45]}  Qxf4 {[%clk 0:02:16]} 19. Re8+ {[%clk 0:02:44]}  Bf8 {[%clk 0:02:16]} 20. Qd8 {[%clk 0:02:44]}  Qh6 {[%clk 0:02:13]} 21. Rae1 {[%clk 0:02:45]}  Bd7 {[%clk 0:01:54]} 22. Qxd7 {[%clk 0:02:42]}  Rxe8 {[%clk 0:01:55]} 23. Qxe8 {[%clk 0:02:40]}  Qd2 {[%clk 0:01:53]} 24. Qe2 {[%clk 0:02:31]}  Qb4 {[%clk 0:01:54]} 25. b3 {[%clk 0:02:31]}  h5 {[%clk 0:01:54]} 26. Rd1 {[%clk 0:02:29]}  Qf4 {[%clk 0:01:50]} 27. Qf3 {[%clk 0:02:21]}  Qc7 {[%clk 0:01:47]} 28. Qd5 {[%clk 0:02:13]}  a6 {[%clk 0:01:33]} 29. Qd7 {[%clk 0:02:13]}  Qb6 {[%clk 0:01:29]} 30. Rf1 {[%clk 0:02:07]}  f5 {[%clk 0:01:20]} 31. Re1 {[%clk 0:01:59]}  Qf6 {[%clk 0:01:17]} 32. Qe6+ {[%clk 0:01:53]}  Kg7 {[%clk 0:01:18]} 33. Qxf6+ {[%clk 0:01:53]}  Kxf6 {[%clk 0:01:19]} 34. Re8 {[%clk 0:01:53]}  Bd6 {[%clk 0:01:19]} 35. g3 {[%clk 0:01:51]}  f4 {[%clk 0:01:17]} 36. Kg2 {[%clk 0:01:50]}  fxg3 {[%clk 0:01:16]} 37. hxg3 {[%clk 0:01:50]}  Kf5 {[%clk 0:01:08]} 38. Kf3 {[%clk 0:01:45]}  b5 {[%clk 0:01:09]} 39. a5 {[%clk 0:01:42]}  Bc7 {[%clk 0:01:09]} 40. Ra8 {[%clk 0:01:40]}  Bxa5 {[%clk 0:01:10]} 41. Rxa6 {[%clk 0:01:41]}  Bc3 {[%clk 0:01:08]} 42. Rc6 {[%clk 0:01:39]}  Bd4 {[%clk 0:01:08]} 43. c3 {[%clk 0:01:35]}  Bg1 {[%clk 0:01:08]} 44. Rb6 {[%clk 0:01:33]}  g5 {[%clk 0:00:59]} 45. Rxb5 {[%clk 0:01:32]}  g4+ {[%clk 0:01:00]} 46. Kg2 {[%clk 0:01:32]}  Be3 {[%clk 0:01:01]} 47. b4 {[%clk 0:01:32]}  Ke4 {[%clk 0:01:01]} 48. bxc5 {[%clk 0:01:31]}  Kd5 {[%clk 0:01:02]} 49. c6+ {[%clk 0:01:29]}  Kxc6 {[%clk 0:01:03]} 50. Rxh5 {[%clk 0:01:30]}  Bd2 {[%clk 0:01:04]} 51. c4 {[%clk 0:01:29]}  Kd6 {[%clk 0:01:03]} 52. Kf1 {[%clk 0:01:29]}  Ke6 {[%clk 0:01:04]} 53. Ke2 {[%clk 0:01:29]}  Bc1 {[%clk 0:01:03]} 54. Kd3 {[%clk 0:01:28]}  Kf6 {[%clk 0:01:04]} 55. Ke4 {[%clk 0:01:28]}  Bg5 {[%clk 0:01:02]} 56. c5 {[%clk 0:01:27]}  Bd2 {[%clk 0:01:02]} 57. c6 {[%clk 0:01:26]}  Ke6 {[%clk 0:01:01]} 58. Rd5 {[%clk 0:01:25]}  Be1 {[%clk 0:00:58]} 59. c7 {[%clk 0:01:25]} 1-0